Cogmind - Beta 15 @@@ ROGUE MODE // 2025.08.29 @ 00:12:41 Player: Elattomatos Result: Self-destructed Performance ------------- Evolutions (2) 1000 Regions Visited (5) 1000 Robots Destroyed (43) 215 Value Destroyed (1015) 1015 Prototype IDs (0) 0 Alien Tech Used (0) 0 Bonus (45) 45 TOTAL SCORE: 3275 Bonus ------- High Alert Combat Kills 45 Cogmind --------- Core Integrity 302/550 Matter 81/300 Energy 100/100 System Corruption 12% Temperature Cool (9) Movement Core (700) Ox13 Location -8/Storage Parts ------- > --- POWER (1) -------- (None) > --- PROPULSION (2) --- (None) > --- UTILITY (6) ------ High-capacity Storage Unit Improved Terrain Scanner > --- WEAPON (2) ------- (None) > --- INVENTORY (20) --- Light Ion Engine Light Treads Improved Treads Improved Treads Wheel Heat Sink Improved Sensor Array Improved Signal Interpreter Terrain Scanner Improved Power Shielding Light Armor Plating Hardened Medium Armor Plating Reactive Plating Heavy EM Pulse Gun Heavy EM Pulse Gun Heavy EM Pulse Gun Beam Rifle Spread Laser Beam Cannon Welding Torch Peak State ------------ > --- POWER ------------ Improved Ion Engine > --- PROPULSION ------- Wheel Wheel > --- UTILITY ---------- High-capacity Storage Unit Structural Scanner Improved Terrain Scanner Terrain Scan Processor Seismic Detector Particle Charger > --- WEAPON ----------- Beam Cannon Flail > --- INVENTORY -------- Ion Engine Light Ion Engine Light Treads Improved Treads Improved Treads Wheel Heat Sink Terrain Scanner Light Armor Plating Light Armor Plating Hardened Medium Armor Plating Heavy EM Pulse Gun Heavy EM Pulse Gun Heavy EM Pulse Gun EM Shotgun Beam Rifle Spread Laser Light Assault Rifle Rocket Launcher Welding Torch [Rating: 21] Favorites ----------- Power Ion Engine Engine Ion Engine Propulsion Wheel Wheel Wheel Utility Seismic Detector Device Seismic Detector Storage High-capacity Storage Unit Processor Terrain Scan Processor Weapon Beam Cannon Energy Gun Beam Rifle Energy Cannon Beam Cannon Ballistic Gun Assault Rifle Launcher Rocket Launcher Special Weapon Mining Laser Impact Weapon Hammer Build | -11 -10 -9 -9 -8 -8 ------- Run | Yrd Mat Mat Min Mat Sto Slots Evolved 4 | . . 2 . 2 . Power . | . . . . . . Propulsion . | . . . . . . Utility 4 | . . 2 . 2 . Weapon . | . . . . . . Parts Attached 29 | 9 6 7 2 4 1 Power 3 | 1 . . 1 1 . Engine 3 | 1 . . 1 1 . Core . | . . . . . . Reactor . | . . . . . . Propulsion 7 | 3 2 1 1 . . Treads . | . . . . . . Leg . | . . . . . . Wheel 7 | 3 2 1 1 . . Hover . | . . . . . . Flight . | . . . . . . Utility 7 | 2 1 2 . 2 . Device 4 | 1 . 1 . 2 . Storage 2 | 1 1 . . . . Processor 1 | . . 1 . . . Hackware . | . . . . . . Protection . | . . . . . . Artifact . | . . . . . . Weapon 12 | 3 3 4 . 1 1 Energy Gun 5 | 2 . 3 . . . Energy Cannon 1 | . . 1 . . . Ballistic Gun 2 | . 2 . . . . Ballistic Cannon . | . . . . . . Launcher 1 | . . . . . 1 Special Weapon 1 | 1 . . . . . Impact Weapon 2 | . 1 . . 1 . Slashing Weapon . | . . . . . . Piercing Weapon . | . . . . . . Special Melee Weapon . | . . . . . . Unidentified Prototypes . | . . . . . . Parts Lost 15 | . 3 1 1 . 10 Power 3 | . . . 1 . 2 Propulsion 5 | . 2 1 . . 2 Utility 4 | . . . . . 4 Weapon 3 | . 1 . . . 2 Highest Loss Streak 9 | . 2 1 1 . 9 To Critical Strikes . | . . . . . . Average Backups 15 | 5 8 14 19 19 19 Power 2 | 1 1 2 2 2 1 Propulsion 3 | 2 2 3 4 4 4 Utility 2 | . 1 1 3 4 6 Weapon 6 | 1 3 6 8 8 6 Tool/Special . | . . . . . . Unused Backups 22 | . . 4 . . 18 Power 1 | . . . . . 1 Propulsion 7 | . . 3 . . 4 Utility 9 | . . . . . 9 Weapon 4 | . . 1 . . 3 Tool/Special 1 | . . . . . 1 Average Slot Usage (%) 98 | . 99 97 100 97 94 Engine 11 | . 14 11 11 9 8 Wheel 22 | . 28 21 22 18 17 Device 21 | . 14 21 22 33 33 Storage 11 | . 14 11 11 9 9 Processor 7 | . . 10 11 9 8 Energy Gun 7 | . 1 12 11 5 . Energy Cannon 6 | . . 4 11 9 6 Ballistic Gun 3 | . 13 . . . . Impact Weapon 4 | . 12 5 . 3 4 Peak Build Rating 21 | 7 8 15 16 21 21 Average Rating 13 | 3 7 14 15 19 19 On Entrance 11 | . 7 7 15 16 21 Naked Turns . | . . . . . . Heaviest Build 60 | 14 50 53 53 59 60 Greatest Support 26 | 26 20 20 20 20 20 Greatest Overweight (x) 5 | . 2 5 2 2 2 Average Overweight (x) 1 | . 1 2 2 2 2 Largest Inventory Capacity 20 | 8 20 20 20 20 20 Average Capacity 18 | 7 17 20 20 20 20 Most Carried 20 | 8 13 20 20 20 20 Average Carried 15 | 5 8 14 19 19 19 Final Capacity 20 | 8 20 20 20 20 20 Final Carried 20 | 7 13 20 20 20 20 Class Distribution -------------------- 59% | Scavenger-Mutant 29% | Mutant 6% | Scavenger-Skirmisher 4% | Scavenger-Assassin Dominant Class ---------------- Mutant | -10/Materials Scavenger-Mutant | -9/Materials Scavenger-Mutant | -9/Mines Scavenger-Skirmisher | -8/Materials Scavenger-Skirmisher | -8/Storage Resources | -11 -10 -9 -9 -8 -8 ----------- Run | Yrd Mat Mat Min Mat Sto Matter Collected 473 | 290 78 75 20 . 10 Remotely . | . . . . . . Salvage Created 1000 | 87 279 201 164 . 269 Parts 59 | 6 9 13 12 . 19 Haulers Intercepted 3 | . 1 1 . . 1 Recyclers Shooed . | . . . . . . Parts Field Recycled . | . . . . . . Retrieved Matter . | . . . . . . Parts Self-Destructed . | . . . . . . Prevented . | . . . . . . Kills | -11 -10 -9 -9 -8 -8 ------- Run | Yrd Mat Mat Min Mat Sto Combat Hostiles Destroyed 27 | . 3 5 5 . 14 Melee 3 | . 2 . . . 1 Guns 7 | . . 5 2 . . Cannons 4 | . . . 3 . 1 AOE 12 | . . . . . 12 Classes Destroyed 11 | 2 4 2 . . 3 Worker 1 | . . . . . 1 Builder 5 | . 4 . 1 . . Tunneler 2 | 2 . . . . . Hauler 3 | . 1 1 . . 1 Recycler 1 | 1 . . . . . Watcher 4 | . 2 1 . . 1 Swarmer 13 | . . 3 3 . 7 Grunt 11 | . 3 1 2 . 5 Brawler 1 | . . . . . 1 Sentry 1 | . . 1 . . . Hunter 1 | . . . . . 1 Best Kill Streak 15 | 3 2 4 3 . 15 Combat Bots Only 12 | . 1 4 3 . 12 Max Kills in Single Turn 4 | 2 1 3 1 . 4 Gunslinging 1 | . . 1 . . . Exploded 4 | . . . . . 4 Melee 1 | . 1 . . . 1 Uniques/NPCs Destroyed . | . . . . . . Combat | -11 -10 -9 -9 -8 -8 -------- Run | Yrd Mat Mat Min Mat Sto Hostile Shots Fired 138 | . 34 18 12 . 74 Missed 43 | . 9 8 2 . 24 Hits 95 | . 25 10 10 . 50 Melee 5 | . . . . . 5 Projectile 90 | . 25 10 10 . 45 Critical Strikes 5 | . 2 1 1 . 1 Damage Taken 1474 | . 417 113 108 . 836 Core 439 | . 124 20 47 . 248 Absorbed by Shields . | . . . . . . Core Remaining (%) 77 | 100 50 . 83 . . Volleys Fired 46 | 2 1 12 12 . 19 Largest 2 | 2 1 2 2 . 2 Hottest 150 | 150 20 121 116 . 93 Shots Fired 73 | 3 1 19 24 . 26 Gun 32 | 2 1 17 12 . . Cannon 21 | . . 2 12 . 7 Launcher 19 | . . . . . 19 Special 1 | 1 . . . . . Kinetic 1 | . 1 . . . . Thermal 53 | 3 . 19 24 . 7 Explosive 19 | . . . . . 19 Electromagnetic . | . . . . . . Robot Hit Streak 9 | 1 . 9 6 . 2 Robot Miss Streak 3 | 1 1 3 1 . 3 Penetration Max . | . . . . . . Secondary Targets 1 | . . 1 . . . Max Gunslinging Chain 1 | . . 1 . . . Shots Hit Robots 65 | 2 22 14 16 . 11 Core Hits 61 | 3 3 16 7 . 32 Critical Kills 1 | . 1 . . . . Critical Parts Destroyed 3 | . 2 . . . 1 Critical Strikes 7 | . 3 1 2 . 1 Burn 3 | . . 1 2 . . Smash 4 | . 3 . . . 1 Melee Attacks 46 | . 30 3 . 3 10 Impact 46 | . 30 3 . 3 10 Slashing . | . . . . . . Piercing . | . . . . . . Sneak Attacks 7 | . 7 . . . . Combat Hostiles . | . . . . . . Follow-up Attacks . | . . . . . . Damage Inflicted 3022 | 48 757 179 239 . 1799 Guns 304 | 24 . 179 101 . . Cannons 173 | . . . 138 . 35 Explosions 1656 | . . . . . 1656 Melee 865 | . 757 . . . 108 Ramming . | . . . . . . Kinetic . | . . . . . . Thermal 501 | 48 . 179 239 . 35 Explosive 1656 | . . . . . 1656 Electromagnetic . | . . . . . . Impact 865 | . 757 . . . 108 Slashing . | . . . . . . Piercing . | . . . . . . Highest Corruption 12 | . 2 . . . 12 Average Corruption 2 | . 1 . . . 3 Corruption Purged . | . . . . . . Corruption Blocked . | . . . . . . Effects 5 | . 4 . . . 1 Message Errors 3 | . 3 . . . . Heat Flow Errors 1 | . . . . . 1 Energy Discharges 1 | . 1 . . . . Overload Shots . | . . . . . . Overflow Damage 301 | . 213 . 12 . 76 Projectiles 12 | . . . 12 . . Explosions 37 | . . . . . 37 Melee 252 | . 213 . . . 39 Knockbacks 2 | . 2 . . . . Impact 2 | . 2 . . . . Kinetic . | . . . . . . Secondary . | . . . . . . Self-Inflicted Damage . | . . . . . . Shots . | . . . . . . Rammed . | . . . . . . Targets Rammed . | . . . . . . Kicked . | . . . . . . Crushed . | . . . . . . Highest Temperature 321 | 50 9 153 321 . 87 Average Temperature 73 | 27 8 53 125 . 26 Received Heat Transfer 663 | . 216 45 60 . 342 Siege Activations . | . . . . . . Martial Activations . | . . . . . . Shielding Activations . | . . . . . . Robots Disrupted . | . . . . . . Combat Hostiles . | . . . . . . Robots Corrupted 4 | . 4 . . . . Combat Hostiles 1 | . 1 . . . . Parts Fried 11 | . 11 . . . . Impact Corruptions 11 | . 10 . . . 1 Robots Melted . | . . . . . . Combat Hostiles . | . . . . . . Parts Melted . | . . . . . . Heat Transferred 1273 | 124 . 372 703 . 74 Parts Sabotaged . | . . . . . . Parts Stolen . | . . . . . . Parts Stripped . | . . . . . . Power Chain Reactions . | . . . . . . Alert | -11 -10 -9 -9 -8 -8 ------- Run | Yrd Mat Mat Min Mat Sto Maximum Alert Level 2 | . . . . . 2 Low Security (%) 92 | 100 100 100 100 100 18 Level 1 . | . . . . . 3 Level 2 6 | . . . . . 78 Level 3 . | . . . . . . Level 4 . | . . . . . . Level 5 . | . . . . . . High Security . | . . . . . . Max Security . | . . . . . . Peak Influence 564 | 10 40 100 69 8 564 Initial 9 | . . . 9 7 . Average 47 | 2 8 35 9 3 402 Influence Increases 1106 | 15 138 145 115 9 684 Destroy 0b10 Robot/C 540 | . 60 100 100 . 280 Destroy 0b10 Robot/NC 80 | 15 35 10 5 . 15 Destroy Leader 124 | . 26 34 10 . 54 Allied During Kill 13 | . . . . . 13 Successful Hack 17 | . . . . 7 10 Disable Machine 60 | . . . . . 60 Anti-Garrison Action 150 | . . . . . 150 Destroy Structure 92 | . 2 1 . 2 87 Lose Combat Pursuer 30 | . 15 . . . 15 Influence Decreases 622 | 15 136 123 118 30 200 Entered New Map 31 | . . 2 15 14 . Time Decay 451 | 15 126 111 103 16 80 Lost Part 120 | . 10 10 . . 100 Lost Ally 20 | . . . . . 20 Squads Dispatched 6 | . 1 1 . . 4 Investigation 2 | . 1 1 . . . Extermination . | . . . . . . Reinforcement 1 | . . . . . 1 Assault 2 | . . . . . 2 Garrison 1 | . . . . . 1 Intercept . | . . . . . . Searches Triggered . | . . . . . . Construction Impeded . | . . . . . . Haulers Reinforced . | . . . . . . Active Scanning Responses . | . . . . . . Cargo Convoy Interrupts . | . . . . . . Stealth | -11 -10 -9 -9 -8 -8 --------- Run | Yrd Mat Mat Min Mat Sto Distress Signals 4 | . 1 1 . . 2 Communications Jammed . | . . . . . . Distress Signals . | . . . . . . Times Spotted 51 | . 12 11 6 . 22 Peak Tracking Total 9 | . 4 4 4 . 9 Tactical Retreats 2 | . 1 . . . 1 Traps | -11 -10 -9 -9 -8 -8 ------- Run | Yrd Mat Mat Min Mat Sto Traps Triggered 6 | . 4 . . . 2 Indirectly . | . . . . . . Trap Hack Attempts . | . . . . . . Triggered . | . . . . . . Disarmed . | . . . . . . Reprogrammed . | . . . . . . Reused . | . . . . . . Traps Extracted . | . . . . . . Installed . | . . . . . . Triggered . | . . . . . . Machines | -11 -10 -9 -9 -8 -8 ---------- Run | Yrd Mat Mat Min Mat Sto Machines Disabled 5 | . . . . . 5 Max in Single Turn 1 | . . . . . 1 Garrison Access 1 | . . . . . 1 Machines Repaired . | . . . . . . Machines Dismantled . | . . . . . . Machines Sabotaged . | . . . . . . Overloaded Fab Kills . | . . . . . . Hacking | -11 -10 -9 -9 -8 -8 --------- Run | Yrd Mat Mat Min Mat Sto Machines Accessed 4 | . . 1 . 1 2 Terminals 4 | . . 1 . 1 2 Fabricators . | . . . . . . Repair Stations . | . . . . . . Recycling Units . | . . . . . . Scanalyzers . | . . . . . . Garrison Access . | . . . . . . Total Hacks 9 | . . 3 . 2 4 Successful 6 | . . 2 . 1 3 Failed 3 | . . 1 . 1 1 Catastrophic . | . . . . . . Database Lockouts . | . . . . . . Manual . | . . . . . . Terminals 9 | . . 3 . 2 4 Fabricators . | . . . . . . Repair Stations . | . . . . . . Recycling Units . | . . . . . . Scanalyzers . | . . . . . . Garrison Access . | . . . . . . Terminal Hacks 6 | . . 2 . 1 3 Record 4 | . . 2 . . 2 Open Door 1 | . . . . . 1 Branch Access Points 1 | . . . . 1 . Fabricator Hacks . | . . . . . . Repair Station Hacks . | . . . . . . Recycling Unit Hacks . | . . . . . . Scanalyzer . | . . . . . . Garrison Access Hacks . | . . . . . . Unauthorized Hacks . | . . . . . . Terminals . | . . . . . . Fabricators . | . . . . . . Repair Stations . | . . . . . . Recycling Units . | . . . . . . Scanalyzers . | . . . . . . Garrison Access . | . . . . . . Data Cores Recovered . | . . . . . . Used . | . . . . . . Hacking Detections 3 | . . 1 . 1 1 Full Trace Events 1 | . . 1 . . . Feedback Events . | . . . . . . Feedback Blocked . | . . . . . . Robot Schematics Acquired . | . . . . . . Robots Built . | . . . . . . Authchips . | . . . . . . Time . | . . . . . . Total Robot Build Rating . | . . . . . . Part Schematics Acquired . | . . . . . . Parts Built . | . . . . . . Authchips . | . . . . . . Time . | . . . . . . Total Part Build Rating . | . . . . . . Parts Repaired . | . . . . . . Time . | . . . . . . Parts Recycled . | . . . . . . Recycled Matter . | . . . . . . Retrieved Matter . | . . . . . . Retrieved Components . | . . . . . . Parts Scanalyzed . | . . . . . . Part Schematics Acquired . | . . . . . . Parts Damaged . | . . . . . . Bothacking | -11 -10 -9 -9 -8 -8 ------------ Run | Yrd Mat Mat Min Mat Sto Used RIF Installer . | . . . . . . Robots Hacked . | . . . . . . Non-combat . | . . . . . . Combat . | . . . . . . Robot Hacks Applied . | . . . . . . Relay Couplers Released 2 | . . . . . 2 Machine Destruction 2 | . . . . . 2 Fabnet Peak Effective % . | . . . . . . Robots Rewired . | . . . . . . Allies Hacked . | . . . . . . Hacks Repelled . | . . . . . . Allies | -11 -10 -9 -9 -8 -8 -------- Run | Yrd Mat Mat Min Mat Sto Total Allies 1 | . . . 1 . . Largest Group 1 | . . . 1 1 1 Highest-Rated Group 31 | . . . 31 31 31 Highest-Rated Ally 31 | . . . 31 31 31 Total Orders . | . . . . . . Ally Attacks 12 | . . . . . 12 Total Damage 63 | . . . . . 63 Kills . | . . . . . . Allies Corrupted . | . . . . . . Allies Melted . | . . . . . . Intel | -11 -10 -9 -9 -8 -8 ------- Run | Yrd Mat Mat Min Mat Sto Active Infowar (turns) 2012 | 7 543 364 855 63 180 Terrain 1447 | . . 349 855 63 180 Structural 235 | . . . . 63 172 Seismic 1999 | 7 543 364 855 63 167 Robot Analysis Total . | . . . . . . Derelict Logs Recovered 1 | . . . 1 . . Drone Launches . | . . . . . . Drone Recoveries . | . . . . . . Exploration | -11 -10 -9 -9 -8 -8 ------------- Run | Yrd Mat Mat Min Mat Sto Turns Passed 2092 | 87 543 364 855 63 180 Spaces Moved 1170 | 72 346 195 426 41 90 Core 18 | 18 . . . . . Treads . | . . . . . . Legs . | . . . . . . Wheels 1152 | 54 346 195 426 41 90 Hover . | . . . . . . Flight . | . . . . . . Fastest Speed 50 | 50 80 110 110 110 110 Average Speed 106 | 78 102 112 110 110 110 Slowest Speed 155 | 90 110 155 110 110 110 Overloaded Moves . | . . . . . . Propulsion Burnouts . | . . . . . . Robots Hopped . | . . . . . . Potential Cave-ins . | . . . . . . Cave-ins Triggered . | . . . . . . Exploration Rate (%) 33 | 4 59 20 86 6 24 Regions Visited 5 Branch Regions 2 Pre-discovered Areas . | . . . . . . Known Exits Taken 1 | . . . . 1 . Unknown Exits Taken 4 | 1 1 1 1 . . Scrap Searched 1 | . . . 1 . . Spaces Dug 16 | . 2 1 . 2 11 Terrain Destroyed 107 | . 2 1 . 2 102 Melee 7 | . 2 1 . 2 2 Projectile . | . . . . . . AOE 100 | . . . . . 100 Terrain Rammed . | . . . . . . Walls Destroyed . | . . . . . . Machines Disabled . | . . . . . . Actions | -11 -10 -9 -9 -8 -8 --------- Run | Yrd Mat Mat Min Mat Sto Total 1869 | 97 479 318 791 53 131 Wait 508 | . 85 78 341 4 . Move 1165 | 71 345 194 425 40 90 Hop . | . . . . . . Pick Up 51 | 13 8 17 6 2 5 Fast Attach 2 | 1 1 . . . . Attach 18 | 7 2 4 1 2 2 Detach 1 | 1 . . . . . Swap 14 | 1 5 4 1 2 1 Drop 18 | 1 2 6 5 . 4 Fire 46 | 2 1 12 12 . 19 Melee 46 | . 30 3 . 3 10 Ram . | . . . . . . Kick . | . . . . . . Crush . | . . . . . . Escape Stasis . | . . . . . . Rewire . | . . . . . . Trap . | . . . . . . Miscellaneous . | . . . . . . Route ------- -11/Scrapyard -10/Materials (discovered 2 exits: *Mat / [*Min]) -9/Materials -9/Mines (discovered 2 exits: *Mat x2) -8/Materials (discovered 2 exits: *Sto x2) -8/Storage History --------- Turn | Location | Event 5 | -11/Scrapyard | Discovered new exit (range 15) 88 | -11/Scrapyard | Entered Materials 300 | -10/Materials | Build established: Mutant 328 | -10/Materials | Discovered new exit (range 11) 437 | -10/Materials | Discovered new exit (range 12) 588 | -10/Materials | Derelicts attacked the area 631 | -10/Materials | Entered another Materials area 631 | -9/Materials | Evolved 2 slots: Utility x2 901 | -9/Materials | Discovered new exit (range 16) 915 | -9/Materials | Build established: Scavenger-Mutant 995 | -9/Materials | Entered Mines 1023 | -9/Mines | Received a Rocket Launcher from a helpful Derelict 1061 | -9/Mines | Assembled infested the area 1065 | -9/Mines | Learned Materials terminal intel 1687 | -9/Mines | Discovered new exit (range 7) 1828 | -9/Mines | Discovered new exit (range 7) 1836 | -9/Mines | Received a Mining Laser from a helpful Derelict 1850 | -9/Mines | Entered Materials 1850 | -8/Materials | Accompanied by 1 ally 1850 | -8/Materials | Evolved 2 slots: Utility x2 1851 | -8/Materials | Loaded intel: 10 terminal locations 1879 | -8/Materials | Identified exit to Storage 1913 | -8/Materials | Entered Storage 1913 | -8/Storage | Accompanied by 1 ally 1938 | -8/Storage | Garrison activated, responded to threat 1991 | -8/Storage | Destroyed 12 combat bots 2081 | -8/Storage | System corruption reached 10% 2093 | -8/Storage | Self-destructed Last Messages --------------- 02080_ System corrupted by crushing effect (+3). 02080_ System corrupted by crushing effect (+2). 02080_ System corrupted by crushing effect (+4). 02080_ Wheel destroyed. 02081_ U-05 Engineer lays Concrete. 02082_ The unstable cave ceiling collapses. 02082_ M-28 Smith repairs G-47 Trooper. 02082_ U-05 Engineer lays Concrete. 02084_ U-05 Engineer builds a Wall. 02085_ U-05 Engineer lays Concrete. 02085_ Structural Scanner destroyed. 02085_ System corrupted by crushing effect (+2). 02086_ System corrupted: Heat flow error (+116). 02086_ U-05 Engineer lays Concrete. 02089_ U-05 Engineer builds a Wall. 02089_ M-28 Smith repairs G-47 Trooper. 02090_ U-05 Engineer lays Concrete. 02091_ Flail destroyed. 02092_ U-05 Engineer builds a Wall. 02092_ U-05 Engineer lays Concrete. Map ----- +----------------------------------------------------+ | ???????????????????????????????????????????????? | | ???????????????????????????????????????????????? | | ???????????????????????????????????????????????? | | ???????????????????????????????????????????????? | | ???????????????????????????????????????????????? | | ???????????????????????????????????????????????? | | ???????????????????????????????????????????????? | | ???????????????????????????????????????????????? | | ???????????????????????????????????????????????? | | ???#???????????????????????????????????????????? | | ???????????????????????#???#???????????????????? | | ??????????????????????#??#?????????????????????? | | ???#???????????????#??#????????#???????????????? | | ?????????#??????#??????#??#????????????????????? | | ???????##??##???????#??##?????????#????????????? | | ?#???????#??#???#???#??#????##????#????????????? | | ?????????#?#????#??#??###???##?????????????????? | | ?#??????##??? ????????#???#?#????????????????? | | ??????#??#?##???######?#???#????###?#??????????? | | ??##???#??##????#??#??##???????????????????????? | | ########??#?# ??#??#??##???##?#??#?#?????????? | | #########?###" "####?????##??#???#?????????????? | | ##"T"#######T ? ######???#??#??#???????????????? | | # ### ## # # ######?????#?????????????? | | #""" # g #####???#????##??????????? | | #""" # mggb@=##?##??#?#????????????? | | #""" # ui ggT####?#???####??#????????? | | # # uu u ######??#?????????????????? | | #""" # o#### ###???????#??????????????? | | #""" + =%## u ##?#??##?????????#????????? | | #""" ! ## "##??#????##???##??????????? | | # # #%""" T##????#???##?#?#??????????? | | #""" # #""" "###?#?#???????????????????? | | # " # #""" ######?#?###?##????????????? | | # # [[## ###??#?????????#???????????? | | #[==##""" ####??##???#???????????????? | | ##" # =# """ ###?#??#?#?????????????????? | | # "G" #= ##""" ## ???? ? ???????????????? | | # """ # ## ## ???? ??? ??????????????? | | ### ## # %=## ## ? ? ?? ????????????????? | | ### # # ### T"##### ? ???????????????????? | | ##### ## # # ""##### ? ?????????????????????? | | # ! # # #####?# ???????????????????????? | | # #= =# #######??? ? ????????????????????? | | # ## %###############?????????????????????? | | # """ # ##############?????????????????????? | | # """ # ?????????????????????? | | # """ + = ! ?????????????????????? | | # ? # =[[ ?????????????????????? | | ??""" # [% ##############?????????????????????? | +----------------------------------------------------+ Best States ------------- Heat Dissipation 31 Energy Generation 12 Energy Capacity 265 Matter Stores 300 Matter Capacity 300 Sight Range 16 Terrain Scan Range 16 Terrain Scan Density 85 Evasion (%) 50 Particle Charging 15 Item Schematics ----------------- None Robot Schematics ------------------ None Fabricated ------------ Nothing Repaired ---------- Nothing Alien Tech Used ----------------- None Achievements -------------- None Challenges ------------ None Game ------ Seed RagnarokLaserFlamer Manual? 0 Play Time 00:55:45 Cumulative 24.1 hours Start 2025.08.28 @ 21:58:56 End 2025.08.29 @ 00:12:41 Sessions 1 Manual Loads 0 Difficulty Rogue Special Mode None Game No. 13 Rogue 13 Adventurer 0 Explorer 0 Win Type - Total 0 Types 0/0/0/0/0/0/0/0/0/0 Lore% 12 Gallery% 18 Achievement% 17 Wizard Run 0 Options --------- Layout 1 ASCII 0 Keyboard 0 Movement Mouse Keybinds 0 Fullscreen 2 Font 24/Proggy Map View 50x35 Zoom Use 0% Tactical HUD 1 Map Filters NONE Filters NONE Steam 1 RUN: fce7d435-5753-4352-9547-d9ca59e57b62